fUST/lending_fUST_20240105
["ID","MTS","AMOUNT","RATE_DAILY","PERIOD"]
[310281162,1704460248095,-4536.36,0.00036712,7]
[310281163,1704460248105,-864.83,0.00036712,7]
[310281164,1704460248116,-515.4,0.00036754,7]
[310281165,1704460248126,-500.0,0.00036754,7]
[310281166,1704460248136,-655.13,0.00036754,7]
[310281167,1704460248146,-500.0,0.00036754,7]
[310281168,1704460248156,-500.0,0.00036755,7]
[310281169,1704460248166,-500.0,0.00036755,7]
[310281170,1704460248176,-607.81684016,0.00036755,7]
[310281171,1704460248186,-1095.31,0.00036755,7]
[310281172,1704460248196,-500.0,0.00036755,7]
[310281173,1704460248206,-500.0,0.00036755,7]
[310281174,1704460248217,-559.5,0.00036766,7]
[310281175,1704460248228,-953.52,0.00036766,7]
[310281176,1704460248238,-500.0,0.00036766,7]
[310281177,1704460248249,-500.0,0.00036786,7]
[310281178,1704460248259,-547.67,0.00036786,7]
[310281179,1704460248270,-500.0,0.00036786,7]
[310281180,1704460248281,-500.0,0.00036786,7]
[310281181,1704460248292,-567.42,0.00036786,7]
[310281182,1704460248304,-500.0,0.00036786,2]
[310281183,1704460248314,-500.0,0.00036786,7]
[310281184,1704460248325,-500.0,0.00036786,7]
[310281185,1704460248335,-945.56,0.00036786,7]
[310281186,1704460248346,-500.0,0.00036786,7]
[310281187,1704460248357,-555.91,0.00036786,7]
[310281188,1704460248367,-500.0,0.00036837,7]
[310281189,1704460248377,-500.0,0.00036837,7]
[310281190,1704460248388,-500.0,0.00036837,7]
[310281191,1704460248398,-500.0,0.00036837,7]
[310281192,1704460248409,-500.0,0.00036837,7]
[310281193,1704460248420,-26404.06968772,0.00036928,3]
[310281194,1704460248430,-1379.02,0.00036959,7]
[310281195,1704460248439,-500.0,0.00036959,7]
[310281196,1704460248450,-1055.33,0.00036959,7]
[310281197,1704460248461,-1887.04,0.00036959,7]
[310281198,1704460248471,-543.09,0.00036959,7]
[310281199,1704460248482,-1808.2,0.00036959,7]
[310281200,1704460248492,-837.38,0.00036986,7]
[310281201,1704460248501,-500.0,0.00036986,7]
[310281202,1704460248512,-189.62135833,0.00036986,7]
[310281203,1704460248522,-500.0,0.00036986,7]
[310281204,1704460248532,-674.65,0.00036986,7]
[310281205,1704460248542,-500.0,0.00036986,7]
[310281206,1704460248551,-655.28,0.00036986,7]
[310281207,1704460248560,-500.0,0.00036986,7]
[310281208,1704460248569,-1886.48,0.00036986,7]
[310281209,1704460248578,-1489.87,0.00036986,7]
[310281210,1704460248589,-500.0,0.00036986,7]
[310281211,1704460248598,-500.0,0.00036986,7]
[310281212,1704460248607,-5277.21,0.00036986,7]
[310281213,1704460248617,-500.0,0.00036986,7]
[310281214,1704460248627,-500.0,0.00036986,7]
[310281215,1704460248637,-56343.51,0.00036986,3]
[310281216,1704460248646,-10883.72,0.00036986,7]
[310281217,1704460248655,-2255.28,0.00036986,7]
[310281218,1704460248665,-500.0,0.00036986,7]
[310281219,1704460248675,-7734.7,0.00036986,7]
[310281220,1704460248685,-934.06,0.00036986,7]
[310281221,1704460248695,-500.0,0.00036986,7]
[310281222,1704460248706,-810.18,0.00036986,7]
[310281223,1704460248715,-764.17,0.00036986,7]
[310281224,1704460248726,-2706.33,0.00036986,7]
[310281225,1704460248736,-500.0,0.00036986,7]
[310281226,1704460248746,-4536.36,0.00036986,7]
[310281227,1704460248756,-864.83,0.00036986,7]
[310281228,1704460248766,-4209.5776207,0.00037,7]
[310281229,1704460248776,-1500.0,0.00037,2]
[310281230,1704460248785,-515.4,0.00037028,7]
[310281231,1704460248794,-500.0,0.00037028,7]
[310281232,1704460248803,-655.13,0.00037028,7]
[310281233,1704460248812,-500.0,0.00037028,7]
[310281234,1704460248821,-500.0,0.00037029,7]
[310281235,1704460248830,-500.0,0.00037029,7]
[310281236,1704460248839,-1095.31,0.00037029,7]
[310281237,1704460248848,-500.0,0.00037029,7]
[310281238,1704460248857,-500.0,0.00037029,7]
[310281239,1704460248866,-559.5,0.0003704,7]
[310281240,1704460248875,-953.52,0.0003704,7]
[310281241,1704460248884,-500.0,0.0003704,7]
[310281242,1704460248893,-500.0,0.0003706,7]
[310281243,1704460248902,-547.67,0.0003706,7]
[310281244,1704460248911,-500.0,0.0003706,7]
[310281245,1704460248920,-500.0,0.0003706,7]
[310281246,1704460248930,-567.42,0.0003706,7]
[310281247,1704460248939,-500.0,0.0003706,2]
[310281248,1704460248948,-500.0,0.0003706,7]
[310281249,1704460248957,-500.0,0.0003706,7]
[310281250,1704460248966,-945.56,0.0003706,7]
[310281251,1704460248975,-500.0,0.0003706,7]
[310281252,1704460248984,-555.91,0.0003706,7]
[310281253,1704460248993,-2192.759532,0.00037075,2]
[310281254,1704460249002,-500.0,0.00037111,7]
[310281255,1704460249010,-500.0,0.00037111,7]
[310281256,1704460249019,-500.0,0.00037111,7]
[310281257,1704460249028,-500.0,0.00037111,7]
[310281258,1704460249036,-500.0,0.00037111,7]
[310281259,1704460249045,-603.09535696,0.00037115,7]
[310281260,1704460249054,-1379.02,0.00037233,7]
[310281261,1704460249063,-500.0,0.00037233,7]
[310281262,1704460249071,-1055.33,0.00037233,7]
[310281263,1704460249080,-1887.04,0.00037233,7]
[310281264,1704460249089,-543.09,0.00037233,7]
[310281265,1704460249098,-1808.2,0.00037233,7]
[310281266,1704460249106,-837.38,0.0003726,7]
[310281267,1704460249115,-500.0,0.0003726,7]
[310281268,1704460249124,-500.0,0.0003726,7]
[310281269,1704460249133,-674.65,0.0003726,7]
[310281270,1704460249142,-500.0,0.0003726,7]
[310281271,1704460249150,-655.28,0.0003726,7]
[310281272,1704460249159,-500.0,0.0003726,7]
[310281273,1704460249168,-1886.48,0.0003726,7]
[310281274,1704460249177,-1489.87,0.0003726,7]
[310281275,1704460249186,-500.0,0.0003726,7]
[310281276,1704460249194,-500.0,0.0003726,7]
[310281277,1704460249203,-5277.21,0.0003726,7]
[310281278,1704460249212,-500.0,0.0003726,7]
[310281279,1704460249222,-500.0,0.0003726,7]
[310281280,1704460249232,-56343.51,0.0003726,3]
[310281281,1704460249242,-10883.72,0.0003726,7]
[310281282,1704460249254,-2255.28,0.0003726,7]
[310281283,1704460249267,-500.0,0.0003726,7]
[310281284,1704460249279,-7734.7,0.0003726,7]
[310281285,1704460249291,-934.06,0.0003726,7]
[310281286,1704460249302,-500.0,0.0003726,7]
[310281287,1704460249313,-810.18,0.0003726,7]
[310281288,1704460249324,-764.17,0.0003726,7]
[310281289,1704460249334,-2706.33,0.0003726,7]
[310281290,1704460249345,-500.0,0.0003726,7]
[310281291,1704460249355,-4536.36,0.0003726,7]
[310281292,1704460249366,-864.83,0.0003726,7]
[310281293,1704460249377,-515.4,0.00037302,7]
[310281294,1704460249388,-500.0,0.00037302,7]
[310281295,1704460249399,-655.13,0.00037302,7]
[310281296,1704460249410,-500.0,0.00037302,7]
[310281297,1704460249420,-500.0,0.00037303,7]
[310281298,1704460249431,-500.0,0.00037303,7]
[310281299,1704460249442,-1095.31,0.00037303,7]
[310281300,1704460249452,-500.0,0.00037303,7]
[310281301,1704460249463,-500.0,0.00037303,7]
[310281302,1704460249473,-559.5,0.00037314,7]
[310281303,1704460249485,-953.52,0.00037314,7]
[310281304,1704460249495,-500.0,0.00037314,7]
[310281305,1704460249505,-500.0,0.00037334,7]
[310281306,1704460249516,-547.67,0.00037334,7]
[310281307,1704460249528,-500.0,0.00037334,7]
[310281308,1704460249539,-500.0,0.00037334,7]
[310281309,1704460249550,-567.42,0.00037334,7]
[310281310,1704460249561,-500.0,0.00037334,2]
[310281311,1704460249572,-500.0,0.00037334,7]
[310281312,1704460249583,-500.0,0.00037334,7]
[310281313,1704460249594,-945.56,0.00037334,7]
[310281314,1704460249605,-500.0,0.00037334,7]
[310281315,1704460249616,-555.91,0.00037334,7]
[310281316,1704460249628,-500.0,0.00037385,7]
[310281317,1704460249639,-500.0,0.00037385,7]
[310281318,1704460249649,-500.0,0.00037385,7]
[310281319,1704460249658,-500.0,0.00037385,7]
[310281320,1704460249668,-500.0,0.00037385,7]
[310281321,1704460249680,-167.91,0.00037399,2]
[310281322,1704460249692,-323.88054611,0.00037399,2]
[310281323,1704460249703,-1379.02,0.00037507,7]
[310281324,1704460249714,-500.0,0.00037507,7]
[310281325,1704460249726,-1055.33,0.00037507,7]
[310281326,1704460249737,-1887.04,0.00037507,7]
[310281327,1704460249747,-543.09,0.00037507,7]
[310281328,1704460249758,-1808.2,0.00037507,7]
[310281329,1704460249768,-837.38,0.00037534,7]
[310281330,1704460249780,-500.0,0.00037534,7]
[310281331,1704460249792,-500.0,0.00037534,7]
[310281332,1704460249802,-674.65,0.00037534,7]
[310281333,1704460249814,-500.0,0.00037534,7]
[310281334,1704460249824,-655.28,0.00037534,7]
[310281335,1704460249835,-500.0,0.00037534,7]
[310281336,1704460249846,-1886.48,0.00037534,7]
[310281337,1704460249857,-1489.87,0.00037534,7]
[310281338,1704460249868,-500.0,0.00037534,7]
[310281339,1704460249879,-500.0,0.00037534,7]
[310281340,1704460249890,-5277.21,0.00037534,7]
[310281341,1704460249901,-500.0,0.00037534,7]
[310281342,1704460249913,-500.0,0.00037534,7]
[310281343,1704460249923,-56343.51,0.00037534,3]
[310281344,1704460249932,-10883.72,0.00037534,7]
[310281345,1704460249942,-2255.28,0.00037534,7]
[310281346,1704460249952,-500.0,0.00037534,7]
[310281347,1704460249961,-7734.7,0.00037534,7]
[310281348,1704460249972,-934.06,0.00037534,7]
[310281349,1704460249982,-500.0,0.00037534,7]
[310281350,1704460249991,-810.18,0.00037534,7]
[310281351,1704460250002,-764.17,0.00037534,7]
[310281352,1704460250013,-500.0,0.00037534,7]
[310281353,1704460250025,-2706.33,0.00037534,7]
[310281354,1704460250036,-4536.36,0.00037534,7]
[310281355,1704460250048,-864.83,0.00037534,7]
[310281356,1704460250065,-151.0,0.00037538,2]
[310281357,1704460250077,-515.4,0.00037576,7]
[310281358,1704460250088,-92.36911285,0.00037576,7]
[310281359,1704460250170,-407.63088715,0.00037576,7]
[310281360,1704460250181,-655.13,0.00037576,7]
[310281361,1704460250191,-500.0,0.00037576,7]
[310281362,1704460250201,-151.0,0.00037577,2]
[310281363,1704460250211,-151.0,0.00037577,2]
[310281364,1704460250222,-500.0,0.00037577,7]
[310281365,1704460250232,-500.0,0.00037577,7]
[310281366,1704460250243,-1095.31,0.00037577,7]
[310281367,1704460250254,-500.0,0.00037577,7]
[310281368,1704460250265,-500.0,0.00037577,7]
[310281369,1704460250276,-559.5,0.00037588,7]
[310281370,1704460250287,-953.52,0.00037588,7]
[310281371,1704460250299,-500.0,0.00037588,7]
[310281372,1704460250310,-500.0,0.00037608,7]
[310281373,1704460250321,-547.67,0.00037608,7]
[310281374,1704460250332,-500.0,0.00037608,7]
[310281375,1704460250344,-500.0,0.00037608,7]
[310281376,1704460250356,-567.42,0.00037608,7]
[310281377,1704460250367,-500.0,0.00037608,2]
[310281378,1704460250379,-500.0,0.00037608,7]
[310281379,1704460250390,-500.0,0.00037608,7]
[310281380,1704460250402,-945.56,0.00037608,7]
[310281381,1704460250414,-500.0,0.00037608,7]
[310281382,1704460250426,-555.91,0.00037608,7]
[310281383,1704460250436,-500.0,0.00037659,7]
[310281384,1704460250448,-500.0,0.00037659,7]
[310281385,1704460250459,-500.0,0.00037659,7]
[310281386,1704460250471,-500.0,0.00037659,7]
[310281387,1704460250482,-253.82020334,0.00037659,7]
[310281388,1704460250493,-166.74380429,0.00037739,4]
[310281389,1704460250503,-401.1322626,0.00037753,2]
[310281390,1704460250513,-1379.02,0.00037781,7]
[310281391,1704460250524,-500.0,0.00037781,7]
[310281392,1704460250533,-1055.33,0.00037781,7]
[310281393,1704460250541,-1887.04,0.00037781,7]
[310281394,1704460250553,-543.09,0.00037781,7]
[310281395,1704460250563,-1808.2,0.00037781,7]
[310281396,1704460250574,-837.38,0.00037808,7]
[310281397,1704460250583,-500.0,0.00037808,7]
[310281398,1704460250593,-500.0,0.00037808,7]
[310281399,1704460250603,-674.65,0.00037808,7]
[310281400,1704460250613,-500.0,0.00037808,7]
[310281401,1704460250623,-655.28,0.00037808,7]
[310281402,1704460250762,-500.0,0.00037808,7]
[310281403,1704460250777,-1886.48,0.00037808,7]
[310281404,1704460250787,-1489.87,0.00037808,7]
[310281405,1704460250798,-500.0,0.00037808,7]
[310281406,1704460250809,-500.0,0.00037808,7]
[310281407,1704460250819,-5277.21,0.00037808,7]
[310281408,1704460250829,-500.0,0.00037808,7]
[310281409,1704460250840,-500.0,0.00037808,7]
[310281410,1704460250850,-56343.51,0.00037808,3]
[310281411,1704460250861,-10883.72,0.00037808,7]
[310281412,1704460250869,-2255.28,0.00037808,7]
[310281413,1704460250878,-500.0,0.00037808,7]
[310281414,1704460250887,-7734.7,0.00037808,7]
[310281415,1704460250897,-934.06,0.00037808,7]
[310281416,1704460250906,-614.53629974,0.00037808,7]
[310281417,1704460250915,-810.18,0.00037808,7]
[310281418,1704460250924,-764.17,0.00037808,7]
[310281419,1704460250935,-500.0,0.00037808,7]
[310281420,1704460250947,-2706.33,0.00037808,7]
[310281421,1704460250956,-4536.36,0.00037808,7]
[310281422,1704460250966,-864.83,0.00037808,7]
[310281423,1704460250979,-515.4,0.0003785,7]
[310281424,1704460250990,-500.0,0.0003785,7]
[310281425,1704460251001,-655.13,0.0003785,7]
[310281426,1704460251011,-500.0,0.0003785,7]
[310281427,1704460251022,-500.0,0.00037851,7]
[310281428,1704460251033,-500.0,0.00037851,7]
[310281429,1704460251042,-1095.31,0.00037851,7]
[310281430,1704460251051,-500.0,0.00037851,7]
[310281431,1704460251062,-500.0,0.00037851,7]
[310281432,1704460251072,-559.5,0.00037862,7]
[310281433,1704460251082,-953.52,0.00037862,7]
[310281434,1704460251092,-500.0,0.00037862,7]
[310281435,1704460251103,-500.0,0.00037882,7]
[310281436,1704460251113,-547.67,0.00037882,7]
[310281437,1704460251124,-500.0,0.00037882,7]
[310281438,1704460251134,-500.0,0.00037882,7]
[310281439,1704460251145,-567.42,0.00037882,7]
[310281440,1704460251156,-500.0,0.00037882,2]
[310281441,1704460251166,-500.0,0.00037882,7]
[310281442,1704460251176,-500.0,0.00037882,7]
[310281443,1704460251187,-945.56,0.00037882,7]
[310281444,1704460251196,-500.0,0.00037882,7]
[310281445,1704460251206,-555.91,0.00037882,7]
[310281446,1704460251216,-500.0,0.00037933,7]
[310281447,1704460251226,-500.0,0.00037933,7]
[310281448,1704460251237,-500.0,0.00037933,7]
[310281449,1704460251247,-340.87121588,0.00037933,7]
[310281450,1704460251257,-379.58002868,0.00038,4]
[310281451,1704460251267,-2000.0,0.00038,12]
[310281452,1704460251278,-300.0,0.00038,19]
[310281453,1704460251288,-1500.0,0.00038,2]
[310281454,1704460251299,-2000.0,0.0003801,12]
[310281455,1704460251309,-510.84282864,0.00038014,2]
[310281456,1704460251319,-2000.0,0.0003802,12]
[310281457,1704460251329,-2000.0,0.0003803,12]
[310281458,1704460251339,-2000.0,0.0003804,12]
[310281459,1704460251348,-2000.0,0.0003805,12]
[310281460,1704460251358,-1206.19071393,0.00038055,30]
[310281461,1704460251368,-1379.02,0.00038055,7]
[310281462,1704460251379,-500.0,0.00038055,7]
[310281463,1704460251389,-1055.33,0.00038055,7]
[310281464,1704460251399,-1887.04,0.00038055,7]
[310281465,1704460251409,-543.09,0.00038055,7]
[310281466,1704460251419,-1808.2,0.00038055,7]
[310281467,1704460251429,-2000.0,0.0003806,12]
[310281468,1704460251439,-2000.0,0.0003807,12]
[310281469,1704460251449,-3183.648382,0.0003808,12]
[310281470,1704460251459,-837.38,0.00038082,7]
[310281471,1704460251470,-500.0,0.00038082,7]
[310281472,1704460251480,-500.0,0.00038082,7]
[310281473,1704460251493,-674.65,0.00038082,7]
[310281474,1704460251503,-500.0,0.00038082,7]
[310281475,1704460251513,-655.28,0.00038082,7]
[310281476,1704460251524,-500.0,0.00038082,7]
[310281477,1704460251533,-1886.48,0.00038082,7]
[310281478,1704460251544,-1489.87,0.00038082,7]
[310281479,1704460251554,-500.0,0.00038082,7]
[310281480,1704460251564,-500.0,0.00038082,7]
[310281481,1704460251574,-5277.21,0.00038082,7]
[310281482,1704460251584,-479.21064113,0.00038082,7]
[310281483,1704460251595,-500.0,0.00038082,7]
[310281484,1704460251606,-56343.51,0.00038082,3]
[310281485,1704460251616,-10883.72,0.00038082,7]
[310281486,1704460251627,-2255.28,0.00038082,7]
[310281487,1704460251638,-500.0,0.00038082,7]
[310281488,1704460251648,-7734.7,0.00038082,7]
[310281489,1704460251658,-934.06,0.00038082,7]
[310281490,1704460251668,-810.18,0.00038082,7]
[310281491,1704460251679,-764.17,0.00038082,7]
[310281492,1704460251690,-500.0,0.00038082,7]
[310281493,1704460251700,-2706.33,0.00038082,7]
[310281494,1704460251711,-4536.36,0.00038082,7]
[310281495,1704460251721,-864.83,0.00038082,7]
[310281496,1704460251732,-515.4,0.00038124,7]
[310281497,1704460251742,-500.0,0.00038124,7]
[310281498,1704460251753,-655.13,0.00038124,7]
[310281499,1704460251766,-500.0,0.00038124,7]
[310281500,1704460251775,-606.04703205,0.00038125,7]
[310281501,1704460251785,-500.0,0.00038125,7]
[310281502,1704460251795,-1095.31,0.00038125,7]
[310281503,1704460251806,-500.0,0.00038125,7]
[310281504,1704460251816,-500.0,0.00038125,7]
[310281505,1704460251826,-151.0,0.00038136,2]
[310281506,1704460251837,-559.5,0.00038136,7]
[310281507,1704460251849,-953.52,0.00038136,7]
[310281508,1704460251859,-500.0,0.00038136,7]
[310281509,1704460251870,-500.0,0.00038156,7]
[310281510,1704460251881,-547.67,0.00038156,7]
[310281511,1704460251892,-500.0,0.00038156,7]
[310281512,1704460251903,-500.0,0.00038156,7]
[310281513,1704460251914,-567.42,0.00038156,7]
[310281514,1704460251924,-500.0,0.00038156,2]
[310281515,1704460251933,-500.0,0.00038156,7]
[310281516,1704460251943,-500.0,0.00038156,7]
[310281517,1704460251954,-945.56,0.00038156,7]
[310281518,1704460251964,-500.0,0.00038156,7]
[310281519,1704460251975,-555.91,0.00038156,7]
[310281520,1704460251985,-500.0,0.00038207,7]
[310281521,1704460251995,-500.0,0.00038207,7]
[310281522,1704460252005,-500.0,0.00038207,7]
[310281523,1704460252016,-301.42425064,0.00038244,2]
[310281524,1704460252026,-1379.02,0.00038329,7]
[310281525,1704460252036,-500.0,0.00038329,7]
[310281526,1704460252046,-1055.33,0.00038329,7]
[310281527,1704460252059,-1887.04,0.00038329,7]
[310281528,1704460252069,-543.09,0.00038329,7]
[310281529,1704460252080,-1808.2,0.00038329,7]
[310281530,1704460252090,-2192.759532,0.00038352,2]
[310281531,1704460252101,-72503.28623183,0.00038353,2]
[310281532,1704460252111,-500.0,0.00038356,7]
[310281533,1704460252120,-500.0,0.00038356,7]
[310281534,1704460252131,-837.38,0.00038356,7]
[310281535,1704460252142,-500.0,0.00038356,2]
[310281536,1704460252152,-500.0,0.00038356,7]
[310281537,1704460252161,-473.76067155,0.00038356,7]
[310281538,1704460252171,-503.15989651,0.00038356,7]
[310281539,1704460252180,-674.65,0.00038356,7]
[310281540,1704460252190,-500.0,0.00038356,7]
[310281541,1704460252200,-655.28,0.00038356,7]
[310281542,1704460252210,-500.0,0.00038356,7]
[310281543,1704460252221,-1886.48,0.00038356,7]
[310281544,1704460252231,-1489.87,0.00038356,7]
[310281545,1704460252241,-500.0,0.00038356,7]
[310281546,1704460252251,-500.0,0.00038356,7]
[310281547,1704460252262,-5277.21,0.00038356,7]
[310281548,1704460252272,-500.0,0.00038356,7]
[310281549,1704460252281,-56343.51,0.00038356,3]
[310281550,1704460252292,-10883.72,0.00038356,7]
[310281551,1704460252303,-1293.61880433,0.00038356,7]
[310281574,1704460835643,10000.0,0.0003,120]
[310281584,1704461313178,1415.8,0.00018973,2]
[310281685,1704461436200,-154.78330338,0.00018962,2]
[310281687,1704461436210,-154.78330338,0.00018963,3]
[310281689,1704461436220,-2805.88372059,0.00018964,2]
[310281691,1704461436229,-4805.95187492,0.00018965,2]
[310281693,1704461436239,-553.52733063,0.00018965,2]
[310281695,1704461436249,-20811.63739219,0.00018966,2]
[310281697,1704461436260,-298.48515016,0.00018967,2]
[310281699,1704461436270,-2699.94240879,0.00018967,5]
[310281701,1704461436282,-2632.81131618,0.00018968,2]
[310281703,1704461436293,-2998.5953234,0.00018973,2]
[310281705,1704461436303,-253.7100353,0.00019992,2]
[310281707,1704461436313,-7853.18847264,0.00019998,2]
[310281709,1704461436323,-2097.15281013,0.00019998,2]
[310281711,1704461436332,-36540.84632286,0.0002,2]
[310281713,1704461436345,-676.09716813,0.0002,2]
[310281714,1704461436381,-166.666666,0.00021918,2]
[310281715,1704461436390,-9907.49920413,0.00023,2]
[310281717,1704461436401,-166.666666,0.000232,2]
[310281718,1704461436411,-166.666666,0.00024482,2]
[310281719,1704461436421,-1618.83130822,0.000295,30]
[310281720,1704461436431,-781.90839515,0.0003,4]
[310281721,1704461436440,-10000.0,0.0003,5]
[310281722,1704461436450,-392.66928205,0.0003,4]
[310281723,1704461436460,-1225.77149332,0.0003,14]
[310281724,1704461436469,-640.57918296,0.0003,4]
[310281725,1704461436479,-375.22063978,0.00030979,2]
[310281726,1704461436489,-500.0,0.00030979,2]
[310281727,1704461436498,-500.0,0.00030979,2]
[310281728,1704461436507,-459.74847329,0.00030979,2]
[310281729,1704461436517,-399.47562347,0.00030979,2]
[310281730,1704461436529,-253.13949888,0.00030979,2]
[310281731,1704461436540,-187.43856179,0.00030989,4]
[310281732,1704461436551,-16430.64,0.0003099,3]
[310281733,1704461436560,-15129.15459891,0.00031,4]
[310281773,1704461438772,-53461.04133636,0.00031,4]
[310281775,1704461438784,-2011.40113899,0.00032,2]
[310281777,1704461438794,-162.50110234,0.00032041,4]
[310281779,1704461438804,-322.38366746,0.00032041,4]
[310281781,1704461438813,-468.93451344,0.00032041,2]
[310281783,1704461438822,-520.2185,0.00032041,4]
[310281785,1704461438831,-351.19539471,0.00032041,4]
[310281787,1704461438840,-641.13780821,0.00032041,4]
[310281789,1704461438849,-155.66474509,0.00032041,4]
[310281791,1704461438858,-154.84515485,0.00032041,4]
[310281793,1704461438867,-527.65670072,0.00032041,4]
[310281795,1704461438877,-154.84515485,0.00032041,2]
[310281797,1704461438887,-2067.23046819,0.00032041,4]
[310281799,1704461438896,-1589.4696236,0.00032041,4]
[310281801,1704461438905,-859.47841956,0.00032041,4]
[310281803,1704461438915,-2289.86161494,0.00032041,4]
[310281805,1704461438925,-300.83380095,0.00032041,4]
[310281807,1704461438934,-155.53002517,0.00032041,4]
[310281809,1704461438945,-616.04881773,0.00032042,4]
[310281810,1704461438955,-213.87387846,0.00032042,4]
[310281812,1704461438964,-159.51633835,0.00032042,4]
[310281814,1704461438975,-419.46095804,0.00032042,4]
[310281816,1704461438984,-154.84515485,0.00032042,4]
[310281818,1704461438995,-2704.45519417,0.00032042,4]
[310281819,1704461439004,-156.60017086,0.00032042,4]
[310281821,1704461439014,-243.50053241,0.00032042,4]
[310281823,1704461439023,-253.17313502,0.00032042,4]
[310281825,1704461439035,-4933.65706882,0.00032042,4]
[310281827,1704461439045,-195.20471139,0.00032042,4]
[310281829,1704461439054,-321.94449774,0.00032042,4]
[310281831,1704461439064,-852.21256595,0.00032042,4]
[310281833,1704461439073,-1238.07238046,0.00032042,4]
[310281835,1704461439083,-2990.08384051,0.00032042,4]
[310281837,1704461439092,-559.68125324,0.00032042,4]
[310281839,1704461439102,-212.61910187,0.00032042,4]
[310281841,1704461439111,-204.85305882,0.00032042,4]
[310281843,1704461439120,-466.12469227,0.00032042,4]
[310281844,1704461439129,-1573.51769649,0.00032042,4]
[310281846,1704461439138,-687.04850271,0.00032042,4]
[310281848,1704461439147,-285.30351426,0.00032042,4]
[310281850,1704461439156,-260.20445317,0.00032042,4]
[310281852,1704461439166,-1171.19863995,0.00032043,4]
[310281854,1704461439175,-1576.20853557,0.00032043,4]
[310281856,1704461439184,-177.01646879,0.00032043,4]
[310281858,1704461439193,-3905.16799703,0.00032043,4]
[310281860,1704461439203,-760.91233417,0.00032044,30]
[310281862,1704461439212,-7544.16505711,0.00032044,4]
[310281864,1704461439221,-878.54587539,0.00032136,2]
[310281866,1704461439230,-469.08343033,0.00032982,2]
[310281868,1704461439240,-245.30041598,0.00033,4]
[310281870,1704461439249,-150.78889555,0.00033108,120]
[310281872,1704461439258,-150.78889555,0.00033784,30]
[310281874,1704461439267,-1233.5494854,0.00033824,2]
[310281875,1704461439277,-1000.0,0.00034,7]
[310281877,1704461439289,-150.78889555,0.00034473,7]
[310281879,1704461439298,-2000.0,0.000345,2]
[310281881,1704461439307,-1614.823776,0.00034521,2]
[310281883,1704461439317,-469.08343033,0.00034523,2]
[310281885,1704461439326,-154.78330338,0.00035,4]
[310281887,1704461439335,-2650.27448344,0.00035,4]
[310281889,1704461439344,-3538.87543689,0.00035,2]
[310281891,1704461439353,-590.28475071,0.00035,2]
[310281893,1704461439362,-4280.0215874,0.00035,4]
[310281895,1704461439372,-474.80514366,0.00035,4]
[310281896,1704461439380,-355.91910944,0.00035,14]
[310281898,1704461439389,-150.78889555,0.00035177,4]
[310281900,1704461439398,-700.0,0.00035367,2]
[310281902,1704461439407,-1888.08913065,0.00035367,2]
[310281904,1704461439416,-424.82005439,0.00035367,2]
[310281906,1704461439425,-606.59697463,0.00035367,2]
[310281908,1704461439434,-477.0,0.00035452,2]
[310281910,1704461439443,-390.33383901,0.00035499,4]
[310281912,1704461439452,-193.37474437,0.00035499,4]
[310281914,1704461439461,-406.51529127,0.00035499,4]